Workbook

Sheet MSBG Bread Zone 1
A1: Enter Company name in this cell
A2: Line | B2: Item | C2: Description | D2: Minimum Whole Grain Credit | E2: Approx. Serving size | F2: Approx. Pack Size | G2: Base Pack Size | H2: Projected Usage | I2: Brand | J2: Distributor Code | K2: Pack Size Description | L2: Actual Pack Size | M2: Domestic Product | N2: Price per Pack | O2: Adjusted Projection | P2: Extension | Q2: Vendor Comment
A3: 1 | B3: Bagel, approx. 3 oz. | C3: Sliced | D3: 2 | E3: 3.0 oz.. | F3: 6 3-3.5 oz. | G3: 6 | H3: 610 | O3: =IF(ISBLANK(L3),H3, (H3*G3)/L3) -> 610 | P3: =O3*N3 -> 0
A4: 2 | B4: Bread, 100% WW, sliced, approx. 4x4, untopped | C4: Approx. 17 oz. and 16 slices | D4: 1 | E4: 1.0 oz | F4: 17 oz. loaf | H4: 1745 | O4: =IF(ISBLANK(L4),H4, (H4*G4)/L4) -> 1745 | P4: =O4*N4 -> 0
A5: 3 | B5: Bread, 100% WW, sliced, approx. 4x5, grain topped | C5: Approx. 20 oz. and 15 slices | D5: 1 | E5: 1.33 oz. | F5: 20 oz. loaf | H5: 1425 | O5: =IF(ISBLANK(L5),H5, (H5*G5)/L5) -> 1425 | P5: =O5*N5 -> 0
A6: 4 | B6: Bread, club,wheat, sliced, approx. 4x4 | C6: Approx. 28 oz. and 26 slices | D6: 1 | E6: 1.0 oz. | F6: 28 oz. loaf | H6: 4740 | O6: =IF(ISBLANK(L6),H6, (H6*G6)/L6) -> 4740 | P6: =O6*N6 -> 0
A7: 5 | B7: Bread, french, wheat, unsliced | C7: Approx.14 oz. and 22 inches | D7: N/A | E7: N/A | F7: 14 oz. loaf | H7: 1393 | O7: =IF(ISBLANK(L7),H7, (H7*G7)/L7) -> 1393 | P7: =O7*N7 -> 0
A8: 6 | B8: Bread, multigrain, or 5 grain, sliced | C8: Approx. 20 oz. and 15 slices | D8: 1 | E8: 1.33 oz. | F8: 20 oz. loaf | H8: 1110 | O8: =IF(ISBLANK(L8),H8, (H8*G8)/L8) -> 1110 | P8: =O8*N8 -> 0
A9: 7 | B9: Bread, pita, approx. 7", wheat or white wheat | C9: Approx. 3.0 oz. | D9: 2 | E9: 3.0 oz. | F9: 4 3.0 oz. | G9: 4 | H9: 540 | O9: =IF(ISBLANK(L9),H9, (H9*G9)/L9) -> 540 | P9: =O9*N9 -> 0
A10: 8 | B10: English muffins, wheat or white wheat | C10: Approx. 2.0 oz. and 3.5 inch, sliced | D10: 2 | E10: 2.0 oz | F10: 12 2.0 oz. | G10: 12 | H10: 943 | O10: =IF(ISBLANK(L10),H10, (H10*G10)/L10) -> 943 | P10: =O10*N10 -> 0
A11: 9 | B11: Panini, wheat, sliced. oat topped | C11: Approx. 38 oz. and 20 slices | D11: 1 | E11: 2.0 oz. | F11: 38 oz. loaf | H11: 560 | O11: =IF(ISBLANK(L11),H11, (H11*G11)/L11) -> 560 | P11: =O11*N11 -> 0
A12: 10 | B12: Roll, bulkie, seedless, wheat or white wheat | C12: Approx. 2.5 oz. and 4", sliced | D12: 2 | E12: 2.5 oz. | F12: 12 2.50 oz. | G12: 6 | H12: 4272 | O12: =IF(ISBLANK(L12),H12, (H12*G12)/L12) -> 4272 | P12: =O12*N12 -> 0
A13: 11 | B13: Roll, dinner, wheat or white wheat | C13: 1 oz, each, soft inside texture, pull-apart cluster | D13: 1 | E13: 1.0 oz. | F13: 30 1.0 oz. | G13: 30 | H13: 3358 | O13: =IF(ISBLANK(L13),H13, (H13*G13)/L13) -> 3358 | P13: =O13*N13 -> 0
A14: 12 | B14: Roll, dinner, honey wheat | C14: 1 oz., individuals | D14: 1,00 | E14: 1.0 oz. | F14: 12 1.oz. | G14: 12 | H14: 254 | O14: =IF(ISBLANK(L14),H14, (H14*G14)/L14) -> 254 | P14: =O14*N14 -> 0
A15: 13 | B15: Roll, French, 4", wheat or white wheat | C15: Sliced, but attached at one side | D15: 1 | E15: 1.5 oz. | F15: 12 1.5 oz. | G15: 12 | H15: 314 | O15: =IF(ISBLANK(L15),H15, (H15*G15)/L15) -> 314 | P15: =O15*N15 -> 0
A16: 14 | B16: Roll, hamburger, wheat or white wheat | C16: 3.5 inch, 2 oz, sliced | D16: 2 | E16: 2.0 oz. | F16: 12 2.0 oz. | G16: 12 | H16: 37666 | O16: =IF(ISBLANK(L16),H16, (H16*G16)/L16) -> 37666 | P16: =O16*N16 -> 0
A17: 15 | B17: Roll, hot dog, wheat or white wheat | C17: New England Style, top sliced | D17: 2 | E17: 2.0 oz. | F17: 12 2.0 oz. | G17: 16 | H17: 6075 | O17: =IF(ISBLANK(L17),H17, (H17*G17)/L17) -> 6075 | P17: =O17*N17 -> 0
A18: 16 | B18: Roll, sub 6", wheat or white wheat | C18: Sliced, but attached at one side | D18: 2 | E18: 2.0 oz. | F18: 12 2.0 oz. | G18: 6 | H18: 16117 | O18: =IF(ISBLANK(L18),H18, (H18*G18)/L18) -> 16117 | P18: =O18*N18 -> 0
A19: 17 | B19: Roll, sub, 8", wheat or white wheat | C19: Sliced, but attached at one side | D19: 2 | E19: 3.0 oz. | F19: 6 3.0 oz. | G19: 6 | H19: 1318 | O19: =IF(ISBLANK(L19),H19, (H19*G19)/L19) -> 1318 | P19: =O19*N19 -> 0
A20: 18 | B20: Wrap, 10" diameter, wheat | C20: Round | D20: 2 | E20: 3.0 oz. | F20: 12 3.0 oz. | G20: 12 | H20: 1068 | O20: =IF(ISBLANK(L20),H20, (H20*G20)/L20) -> 1068 | P20: =O20*N20 -> 0
A21: 19 | B21: Wrap, 8" diameter, wheat | C21: Round | D21: 2 | E21: 2.0 oz. | F21: 10 2.0 oz. | G21: 10 | H21: 1104 | O21: =IF(ISBLANK(L21),H21, (H21*G21)/L21) -> 1104 | P21: =O21*N21 -> 0
N22: Grand Total: | P22: =SUM(P3:P21) -> 0

Sheet MSBG Bread Zone 2
A1: Fantini Bakery
A2: Line | B2: Item | C2: Description | D2: Minimum Whole Grain Credit | E2: Approx. Serving size | F2: Approx. Pack Size | G2: Base Pack Size | H2: Projected Usage | I2: Brand | J2: Distributor Code | K2: Pack Size Description | L2: Actual Pack Size | M2: Domestic Product | N2: Price per Pack | O2: Adjusted Projection | P2: Extension | Q2: Vendor Comment | S2: 17-18 price | T2: 17-18 Reference line | U2: 17-18 Brand | V2: 17-18 Reference item | W2: 17-18 Reference brand
A3: 1 | B3: Bagel, approx. 3 oz. | C3: Sliced | D3: 2 | E3: 3.0 oz. | F3: 6 3-3.5 oz. | G3: 6 | H3: 1755 | I3: Bagel Boy | J3: 2198 | L3: 6 | M3: X | N3: 1.89 | O3: =IF(ISBLANK(L3),H3, (H3*G3)/L3) -> 1755 | P3: =O3*N3 -> 3316.95 | S3: 1.72 | T3: 20 | U3: Duva 6043 | V3: 3 oz. Whole Grain Bagel | W3: Zeppy's
A4: 2 | B4: Bread, 100% WW, sliced, approx. 4x4, untopped | C4: Approx. 17 oz. and 16 slices | D4: 1 | E4: 1.0 oz | F4: 17 oz. loaf | H4: 13458 | I4: Fantini | J4: 144 | M4: X | N4: 1.65 | O4: =IF(ISBLANK(L4),H4, (H4*G4)/L4) -> 13458 | P4: =O4*N4 -> 22205.7 | S4: 1.55 | T4: 1 | U4: Duva 144 | V4: 100% Whole Wheat Bread, Sliced Loaf, Homestyle | W4: Fantini
A5: 3 | B5: Bread, 100% WW, sliced, approx. 4x5, grain topped | C5: Approx. 20 oz. and 15 slices | D5: 1 | E5: 1.33 oz. | F5: 20 oz. loaf | H5: 24 | I5: Fantini | J5: 143 | M5: X | N5: 1.79 | O5: =IF(ISBLANK(L5),H5, (H5*G5)/L5) -> 24 | P5: =O5*N5 -> 42.96 | S5: 1.55 | T5: 2 | U5: Duva 143 | V5: 100% Whole Wheat sliced bread, large Teacher | W5: Fantini As You Like it.
A6: 4 | B6: Bread, club,wheat, sliced, approx. 4x4 | C6: Approx. 28 oz. and 26 slices | D6: 1 | E6: 1.0 oz. | F6: 28 oz. loaf | H6: 16552 | I6: Gold Medal | J6: 133 | M6: x | N6: 2.25 | O6: =IF(ISBLANK(L6),H6, (H6*G6)/L6) -> 16552 | P6: =O6*N6 -> 37242 | S6: 1.75 | T6: 3 | U6: Duva 7202 | V6: Whole Wheat Club, Sliced Loaf | W6: Gold Medal
A7: 5 | B7: Bread, french, wheat, unsliced | C7: Approx.14 oz. and 22 inches | D7: N/A | E7: N/A | F7: 14 oz. loaf | H7: 1286 | I7: Fantini | J7: 31 | M7: X | N7: 1.9 | O7: =IF(ISBLANK(L7),H7, (H7*G7)/L7) -> 1286 | P7: =O7*N7 -> 2443.4 | S7: 1.58 | T7: 4 | U7: Duva 31 | V7: French Bread, Unsliced, Multigrain | W7: Fantini
A8: 6 | B8: Bread, multigrain, or 5 grain, sliced | C8: Approx. 20 oz. and 15 slices | D8: 1 | E8: 1.33 oz. | F8: 20 oz. loaf | H8: 1100 | I8: Fantini | J8: 142 | M8: X | N8: 1.95 | O8: =IF(ISBLANK(L8),H8, (H8*G8)/L8) -> 1100 | P8: =O8*N8 -> 2145 | S8: 1.85 | T8: 5 | U8: Duva 142 | V8: Multi Grain Bread Sliced Loaf | W8: Fantini As You Like it.
A9: 7 | B9: Bread, pita, approx. 7", wheat or white wheat | C9: Approx. 3.0 oz. | D9: 2 | E9: 3.0 oz. | F9: 4 3.0 oz. | G9: 4 | H9: 9449 | I9: Josephs | J9: 213 | L9: 4 | M9: X | N9: 1.15 | O9: =IF(ISBLANK(L9),H9, (H9*G9)/L9) -> 9449 | P9: =O9*N9 -> 10866.35 | S9: 2.15 | T9: 15 | U9: Duva 6012 | V9: Syrian/Pita Bread, 7" Whole Wheat | W9: Joseph's
A10: 8 | B10: English muffins, wheat or white wheat | C10: Approx. 2.0 oz. and 3.5 inch, sliced | D10: 2 | E10: 2.0 oz | F10: 12 2.0 oz. | G10: 12 | H10: 4745 | I10: Gold Medal | J10: 116 | L10: 6 | M10: X | N10: 1.62 | O10: =IF(ISBLANK(L10),H10, (H10*G10)/L10) -> 9490 | P10: =O10*N10 -> 15373.8 | S10: 1.83 | T10: 18 | U10: Duva 3104 | V10: English Muffin, Whole Wheat | W10: Homestead
A11: 9 | B11: Panini, wheat, sliced. oat topped | C11: Approx. 38 oz. and 20 slices | D11: 1 | E11: 2.0 oz. | F11: 38 oz. loaf | H11: 5475 | I11: Fantini | J11: 1096 | M11: X | N11: 3.75 | O11: =IF(ISBLANK(L11),H11, (H11*G11)/L11) -> 5475 | P11: =O11*N11 -> 20531.25 | S11: 1.52 | T11: 19 | U11: Duva 1096 | V11: Panini, Multigrain sliced | W11: Fantini
A12: 10 | B12: Roll, bulkie, seedless, wheat or white wheat | C12: Approx. 2.5 oz. and 4", sliced | D12: 2 | E12: 2.5 oz. | F12: 12 2.50 oz. | G12: 6 | H12: 5825 | I12: Fantini | J12: 157 | L12: 6 | M12: X | N12: 1.42 | O12: =IF(ISBLANK(L12),H12, (H12*G12)/L12) -> 5825 | P12: =O12*N12 -> 8271.5 | S12: 1.6 | T12: 8 | U12: Duva 157 | V12: Bulkie Rolls, Whole Wheat, No seeds | W12: Fantini
A13: 11 | B13: Roll, dinner, wheat or white wheat | C13: 1 oz, each, soft inside texture, pull-apart cluster | D13: 1 | E13: 1.0 oz. | F13: 30 1.0 oz. | G13: 30 | H13: 8550 | I13: Fantini | J13: 168 | L13: 30 | M13: X | N13: 3.3 | O13: =IF(ISBLANK(L13),H13, (H13*G13)/L13) -> 8550 | P13: =O13*N13 -> 28215 | S13: 2.5 | T13: 12 | U13: Duva 168 | V13: Dinner Rolls, White Whole Wheat | W13: Fantini
A14: 12 | B14: Roll, dinner, honey wheat | C14: 1 oz., individuals | D14: 1,00 | E14: 1.0 oz. | F14: 12 1.oz. | G14: 12 | H14: 7096 | I14: Fantini | J14: 167 | L14: 12 | M14: X | N14: 1.9 | O14: =IF(ISBLANK(L14),H14, (H14*G14)/L14) -> 7096 | P14: =O14*N14 -> 13482.4 | T14: 13 | U14: Duva 167 | V14: Dinner Rolls, Honey Whole Wheat | W14: Fantini
A15: 13 | B15: Roll, French, 4", wheat or white wheat | C15: Sliced, but attached at one side | D15: 1 | E15: 1.5 oz. | F15: 12 1.5 oz. | G15: 12 | H15: 3124 | I15: Fantini | J15: 4867 | L15: 12 | M15: X | N15: 3.36 | O15: =IF(ISBLANK(L15),H15, (H15*G15)/L15) -> 3124 | P15: =O15*N15 -> 10496.64 | S15: 0.95 | T15: 9 | U15: Duva 4867 | V15: 4" French Rolls, Whole Wheat | W15: Fantini
A16: 14 | B16: Roll, hamburger, wheat or white wheat | C16: 3.5 inch, 2 oz, sliced | D16: 2 | E16: 2.0 oz. | F16: 12 2.0 oz. | G16: 12 | H16: 65906 | I16: Fantini | J16: 155 | L16: 12 | M16: X | N16: 1.74 | O16: =IF(ISBLANK(L16),H16, (H16*G16)/L16) -> 65906 | P16: =O16*N16 -> 114676.44 | S16: 1.5 | T16: 6 | U16: Duva 155 | V16: Hamburg Rolls, Whole Wheat | W16: Fantini
A17: 15 | B17: Roll, hot dog, wheat or white wheat | C17: New England Style, top sliced | D17: 2 | E17: 2.0 oz. | F17: 12 2.0 oz. | G17: 16 | H17: 11937 | I17: Gold Medal | J17: 215 | L17: 12 | M17: X | N17: 2.45 | O17: =IF(ISBLANK(L17),H17, (H17*G17)/L17) -> 15916 | P17: =O17*N17 -> 38994.2 | S17: 1.85 | T17: 7 | U17: Duva 3016 | V17: Hot Dog Rolls, Whole Wheat | W17: Gold Medal
A18: 16 | B18: Roll, sub 6", wheat or white wheat | C18: Sliced, but attached at one side | D18: 2 | E18: 2.0 oz. | F18: 12 2.0 oz. | G18: 6 | H18: 34266 | I18: Fantini | J18: 1061 | L18: 6 | M18: X | N18: 1.42 | O18: =IF(ISBLANK(L18),H18, (H18*G18)/L18) -> 34266 | P18: =O18*N18 -> 48657.72 | S18: 1.65 | T18: 10 | U18: Duva 1061 | V18: 6" Sub Rolls, Whole Wheat | W18: Fantini
A19: 17 | B19: Roll, sub, 8", wheat or white wheat | C19: Sliced, but attached at one side | D19: 2 | E19: 3.0 oz. | F19: 6 3.0 oz. | G19: 6 | H19: 2450 | I19: Fantini | J19: 557 | L19: 6 | M19: X | N19: 1.8 | O19: =IF(ISBLANK(L19),H19, (H19*G19)/L19) -> 2450 | P19: =O19*N19 -> 4410 | S19: 1.45 | T19: 11 | U19: Duva 557 | V19: 8" Sur Roll, Whole Wheat' | W19: Fantini
A20: 18 | B20: Wrap, 10" diameter, wheat | C20: Round | D20: 2 | E20: 3.0 oz. | F20: 12 3.0 oz. | G20: 12 | H20: 4527 | I20: Josephs | J20: 9645 | L20: 12 | M20: X | N20: 2.89 | O20: =IF(ISBLANK(L20),H20, (H20*G20)/L20) -> 4527 | P20: =O20*N20 -> 13083.03 | S20: 3.25 | T20: 17 | U20: Duva 2267 | V20: Wrap. 11" Diameter, Whole Wheat | W20: Joseph's
A21: 19 | B21: Wrap, 8" diameter, wheat | C21: Round | D21: 2 | E21: 2.0 oz. | F21: 10 2.0 oz. | G21: 10 | H21: 1852 | I21: Josephs | J21: 9216 | L21: 10 | M21: X | N21: 1.85 | O21: =IF(ISBLANK(L21),H21, (H21*G21)/L21) -> 1852 | P21: =O21*N21 -> 3426.2 | T21: 16 | U21: Duva 2467 | V21: Wrap. 8" Diameter, Whole Wheat | W21: Joseph's
N22: Grand Total: | P22: =SUM(P3:P21) -> 397880.54

Sheet MSBG Bread Zone 3
A1: Fantini Bakery
A2: Line | B2: Item | C2: Description | D2: Minimum Whole Grain Credit | E2: Approx. Serving size | F2: Approx. Pack Size | G2: Base Pack Size | H2: Projected Usage | I2: Brand | J2: Distributor Code | K2: Pack Size Description | L2: Actual Pack Size | M2: Domestic Product | N2: Price per Pack | O2: Adjusted Projection | P2: Extension | Q2: Vendor Comment | S2: 17-18 price | T2: 17-18 Reference line | U2: 17-18 Brand | V2: 17-18 Reference item | W2: 17-18 Reference brand
A3: 1 | B3: Bagel, approx. 3 oz. | C3: Sliced | D3: 2 | E3: 3.0 oz. | F3: 6 3-3.5 oz. | G3: 6 | H3: 254 | I3: Bagel Boy | J3: 2198 | L3: 6 | M3: X | N3: 1.89 | O3: =IF(ISBLANK(L3),H3, (H3*G3)/L3) -> 254 | P3: =O3*N3 -> 480.06 | S3: 1.72 | T3: 20 | U3: Duva 6043 | V3: 3 oz. Whole Grain Bagel | W3: Zeppy's
A4: 2 | B4: Bread, 100% WW, sliced, approx. 4x4, untopped | C4: Approx. 17 oz. and 16 slices | D4: 1 | E4: 1.0 oz | F4: 17 oz. loaf | H4: 1792 | I4: Fantini | J4: 144 | M4: X | N4: 1.65 | O4: =IF(ISBLANK(L4),H4, (H4*G4)/L4) -> 1792 | P4: =O4*N4 -> 2956.8 | S4: 1.55 | T4: 1 | U4: Duva 144 | V4: 100% Whole Wheat Bread, Sliced Loaf, Homestyle | W4: Fantini
A5: 3 | B5: Bread, 100% WW, sliced, approx. 4x5, grain topped | C5: Approx. 20 oz. and 15 slices | D5: 1 | E5: 1.33 oz. | F5: 20 oz. loaf | H5: 1047 | I5: Fantini | J5: 143 | M5: X | N5: 1.79 | O5: =IF(ISBLANK(L5),H5, (H5*G5)/L5) -> 1047 | P5: =O5*N5 -> 1874.13 | S5: 1.55 | T5: 2 | U5: Duva 143 | V5: 100% Whole Wheat sliced bread, large Teacher | W5: Fantini As You Like it.
A6: 4 | B6: Bread, club,wheat, sliced, approx. 4x4 | C6: Approx. 28 oz. and 26 slices | D6: 1 | E6: 1.0 oz. | F6: 28 oz. loaf | H6: 4676 | I6: Gold Medal | J6: 133 | M6: X | N6: 2.25 | O6: =IF(ISBLANK(L6),H6, (H6*G6)/L6) -> 4676 | P6: =O6*N6 -> 10521 | S6: 1.75 | T6: 3 | U6: Duva 7202 | V6: Whole Wheat Club, Sliced Loaf | W6: Gold Medal
A7: 5 | B7: Bread, french, wheat, unsliced | C7: Approx.14 oz. and 22 inches | D7: N/A | E7: N/A | F7: 14 oz. loaf | H7: 716 | I7: Fantini | J7: 31 | M7: X | N7: 1.9 | O7: =IF(ISBLANK(L7),H7, (H7*G7)/L7) -> 716 | P7: =O7*N7 -> 1360.4 | S7: 1.58 | T7: 4 | U7: Duva 31 | V7: French Bread, Unsliced, Multigrain | W7: Fantini
A8: 6 | B8: Bread, multigrain, or 5 grain, sliced | C8: Approx. 20 oz. and 15 slices | D8: 1 | E8: 1.33 oz. | F8: 20 oz. loaf | H8: 718 | I8: Fantini | J8: 142 | M8: X | N8: 1.95 | O8: =IF(ISBLANK(L8),H8, (H8*G8)/L8) -> 718 | P8: =O8*N8 -> 1400.1 | S8: 1.85 | T8: 5 | U8: Duva 142 | V8: Multi Grain Bread Sliced Loaf | W8: Fantini As You Like it.
A9: 7 | B9: Bread, pita, approx. 7", wheat or white wheat | C9: Approx. 3.0 oz. | D9: 2 | E9: 3.0 oz. | F9: 4 3.0 oz. | G9: 4 | H9: 2790 | I9: Josephs | J9: 213 | L9: 4 | M9: X | N9: 1.15 | O9: =IF(ISBLANK(L9),H9, (H9*G9)/L9) -> 2790 | P9: =O9*N9 -> 3208.5 | S9: 2.15 | T9: 15 | U9: Duva 6012 | V9: Syrian/Pita Bread, 7" Whole Wheat | W9: Joseph's
A10: 8 | B10: English muffins, wheat or white wheat | C10: Approx. 2.0 oz. and 3.5 inch, sliced | D10: 2 | E10: 2.0 oz | F10: 12 2.0 oz. | G10: 12 | H10: 700 | I10: Gold Medal | J10: 116 | L10: 6 | M10: X | N10: 1.62 | O10: =IF(ISBLANK(L10),H10, (H10*G10)/L10) -> 1400 | P10: =O10*N10 -> 2268 | S10: 1.83 | T10: 18 | U10: Duva 3104 | V10: English Muffin, Whole Wheat | W10: Homestead
A11: 9 | B11: Panini, wheat, sliced. oat topped | C11: Approx. 38 oz. and 20 slices | D11: 1 | E11: 2.0 oz. | F11: 38 oz. loaf | H11: 114 | I11: Fantini | J11: 1096 | M11: X | N11: 3.75 | O11: =IF(ISBLANK(L11),H11, (H11*G11)/L11) -> 114 | P11: =O11*N11 -> 427.5 | S11: 1.52 | T11: 19 | U11: Duva 1096 | V11: Panini, Multigrain sliced | W11: Fantini
A12: 10 | B12: Roll, bulkie, seedless, wheat or white wheat | C12: Approx. 2.5 oz. and 4", sliced | D12: 2 | E12: 2.5 oz. | F12: 12 2.50 oz. | G12: 6 | H12: 3815 | I12: Fantini | J12: 157 | L12: 6 | M12: X | N12: 1.42 | O12: =IF(ISBLANK(L12),H12, (H12*G12)/L12) -> 3815 | P12: =O12*N12 -> 5417.3 | S12: 1.6 | T12: 8 | U12: Duva 157 | V12: Bulkie Rolls, Whole Wheat, No seeds | W12: Fantini
A13: 11 | B13: Roll, dinner, wheat or white wheat | C13: 1 oz, each, soft inside texture, pull-apart cluster | D13: 1 | E13: 1.0 oz. | F13: 30 1.0 oz. | G13: 30 | H13: 2957 | I13: Fantini | J13: 168 | L13: 30 | M13: X | N13: 3.3 | O13: =IF(ISBLANK(L13),H13, (H13*G13)/L13) -> 2957 | P13: =O13*N13 -> 9758.1 | S13: 2.5 | T13: 12 | U13: Duva 168 | V13: Dinner Rolls, White Whole Wheat | W13: Fantini
A14: 12 | B14: Roll, dinner, honey wheat | C14: 1 oz., individuals | D14: 1,00 | E14: 1.0 oz. | F14: 12 1.oz. | G14: 12 | H14: 578 | I14: Fantini | J14: 167 | L14: 12 | M14: X | N14: 1.9 | O14: =IF(ISBLANK(L14),H14, (H14*G14)/L14) -> 578 | P14: =O14*N14 -> 1098.2 | T14: 13 | U14: Duva 167 | V14: Dinner Rolls, Honey Whole Wheat | W14: Fantini
A15: 13 | B15: Roll, French, 4", wheat or white wheat | C15: Sliced, but attached at one side | D15: 1 | E15: 1.5 oz. | F15: 12 1.5 oz. | G15: 12 | H15: 0 | I15: Fantini | J15: 4867 | L15: 12 | M15: X | N15: 3.36 | O15: =IF(ISBLANK(L15),H15, (H15*G15)/L15) -> 0 | P15: =O15*N15 -> 0 | S15: 0.95 | T15: 9 | U15: Duva 4867 | V15: 4" French Rolls, Whole Wheat | W15: Fantini
A16: 14 | B16: Roll, hamburger, wheat or white wheat | C16: 3.5 inch, 2 oz, sliced | D16: 2 | E16: 2.0 oz. | F16: 12 2.0 oz. | G16: 12 | H16: 45617 | I16: Fantini | J16: 155 | L16: 12 | M16: X | N16: 1.74 | O16: =IF(ISBLANK(L16),H16, (H16*G16)/L16) -> 45617 | P16: =O16*N16 -> 79373.58 | S16: 1.5 | T16: 6 | U16: Duva 155 | V16: Hamburg Rolls, Whole Wheat | W16: Fantini
A17: 15 | B17: Roll, hot dog, wheat or white wheat | C17: New England Style, top sliced | D17: 2 | E17: 2.0 oz. | F17: 12 2.0 oz. | G17: 16 | H17: 5328 | I17: Gold Medal | J17: 215 | L17: 12 | M17: X | N17: 2.45 | O17: =IF(ISBLANK(L17),H17, (H17*G17)/L17) -> 7104 | P17: =O17*N17 -> 17404.8 | S17: 1.85 | T17: 7 | U17: Duva 3016 | V17: Hot Dog Rolls, Whole Wheat | W17: Gold Medal
A18: 16 | B18: Roll, sub 6", wheat or white wheat | C18: Sliced, but attached at one side | D18: 2 | E18: 2.0 oz. | F18: 12 2.0 oz. | G18: 6 | H18: 14517 | I18: Fantini | J18: 1061 | L18: 6 | M18: X | N18: 1.42 | O18: =IF(ISBLANK(L18),H18, (H18*G18)/L18) -> 14517 | P18: =O18*N18 -> 20614.14 | S18: 1.65 | T18: 10 | U18: Duva 1061 | V18: 6" Sub Rolls, Whole Wheat | W18: Fantini
A19: 17 | B19: Roll, sub, 8", wheat or white wheat | C19: Sliced, but attached at one side | D19: 2 | E19: 3.0 oz. | F19: 6 3.0 oz. | G19: 6 | I19: Fantini | J19: 557 | L19: 6 | M19: X | N19: 1.8 | O19: =IF(ISBLANK(L19),H19, (H19*G19)/L19) -> 0 | P19: =O19*N19 -> 0 | S19: 1.45 | T19: 11 | U19: Duva 557 | V19: 8" Sur Roll, Whole Wheat' | W19: Fantini
A20: 18 | B20: Wrap, 10" diameter, wheat | C20: Round | D20: 2 | E20: 3.0 oz. | F20: 12 3.0 oz. | G20: 12 | H20: 2910 | I20: Josephs | J20: 9645 | L20: 12 | M20: X | N20: 2.89 | O20: =IF(ISBLANK(L20),H20, (H20*G20)/L20) -> 2910 | P20: =O20*N20 -> 8409.9 | S20: 3.25 | T20: 17 | U20: Duva 2267 | V20: Wrap. 11" Diameter, Whole Wheat | W20: Joseph's
A21: 19 | B21: Wrap, 8" diameter, wheat | C21: Round | D21: 2 | E21: 2.0 oz. | F21: 10 2.0 oz. | G21: 10 | H21: 727 | I21: Josephs | J21: 9216 | L21: 10 | M21: X | N21: 1.85 | O21: =IF(ISBLANK(L21),H21, (H21*G21)/L21) -> 727 | P21: =O21*N21 -> 1344.95 | T21: 16 | U21: Duva 2467 | V21: Wrap. 8" Diameter, Whole Wheat | W21: Joseph's
N22: Grand Total: | P22: =SUM(P3:P21) -> 167917.46

Sheet MSBG Bread Zone 4
A1: Enter Company name in this cell
A2: Line | B2: Item | C2: Description | D2: Minimum Whole Grain Credit | E2: Approx. Serving size | F2: Approx. Pack Size | G2: Base Pack Size | H2: Projected Usage | I2: Brand | J2: Distributor Code | K2: Pack Size Description | L2: Actual Pack Size | M2: Domestic Product | N2: Price per Pack | O2: Adjusted Projection | P2: Extension | Q2: Vendor Comment | S2: 17-18 price | T2: 17-18 Reference line | U2: 17-18 Brand | V2: 17-18 Reference item | W2: 17-18 Reference brand
A3: 1 | B3: Bagel, approx. 3 oz. | C3: Sliced | D3: 2 | E3: 3.0 oz. | F3: 6 3-3.5 oz. | G3: 6 | H3: 450 | O3: =IF(ISBLANK(L3),H3, (H3*G3)/L3) -> 450 | P3: =O3*N3 -> 0 | S3: 1.72 | T3: 20 | U3: Duva 6043 | V3: 3 oz. Whole Grain Bagel | W3: Zeppy's
A4: 2 | B4: Bread, 100% WW, sliced, approx. 4x4, untopped | C4: Approx. 17 oz. and 16 slices | D4: 1 | E4: 1.0 oz | F4: 17 oz. loaf | H4: 16154 | O4: =IF(ISBLANK(L4),H4, (H4*G4)/L4) -> 16154 | P4: =O4*N4 -> 0 | S4: 1.55 | T4: 1 | U4: Duva 144 | V4: 100% Whole Wheat Bread, Sliced Loaf, Homestyle | W4: Fantini
A5: 3 | B5: Bread, 100% WW, sliced, approx. 4x5, grain topped | C5: Approx. 20 oz. and 15 slices | D5: 1 | E5: 1.33 oz. | F5: 20 oz. loaf | H5: 695 | O5: =IF(ISBLANK(L5),H5, (H5*G5)/L5) -> 695 | P5: =O5*N5 -> 0 | S5: 1.55 | T5: 2 | U5: Duva 143 | V5: 100% Whole Wheat sliced bread, large Teacher | W5: Fantini As You Like it.
A6: 4 | B6: Bread, club,wheat, sliced, approx. 4x4 | C6: Approx. 28 oz. and 26 slices | D6: 1 | E6: 1.0 oz. | F6: 28 oz. loaf | H6: 4739 | O6: =IF(ISBLANK(L6),H6, (H6*G6)/L6) -> 4739 | P6: =O6*N6 -> 0 | S6: 1.75 | T6: 3 | U6: Duva 7202 | V6: Whole Wheat Club, Sliced Loaf | W6: Gold Medal
A7: 5 | B7: Bread, french, wheat, unsliced | C7: Approx.14 oz. and 22 inches | D7: N/A | E7: N/A | F7: 14 oz. loaf | H7: 260 | O7: =IF(ISBLANK(L7),H7, (H7*G7)/L7) -> 260 | P7: =O7*N7 -> 0 | S7: 1.58 | T7: 4 | U7: Duva 31 | V7: French Bread, Unsliced, Multigrain | W7: Fantini
A8: 6 | B8: Bread, multigrain, or 5 grain, sliced | C8: Approx. 20 oz. and 15 slices | D8: 1 | E8: 1.33 oz. | F8: 20 oz. loaf | H8: 45 | O8: =IF(ISBLANK(L8),H8, (H8*G8)/L8) -> 45 | P8: =O8*N8 -> 0 | S8: 1.85 | T8: 5 | U8: Duva 142 | V8: Multi Grain Bread Sliced Loaf | W8: Fantini As You Like it.
A9: 7 | B9: Bread, pita, approx. 7", wheat or white wheat | C9: Approx. 3.0 oz. | D9: 2 | E9: 3.0 oz. | F9: 4 3.0 oz. | G9: 4 | H9: 300 | O9: =IF(ISBLANK(L9),H9, (H9*G9)/L9) -> 300 | P9: =O9*N9 -> 0 | S9: 2.15 | T9: 15 | U9: Duva 6012 | V9: Syrian/Pita Bread, 7" Whole Wheat | W9: Joseph's
A10: 8 | B10: English muffins, wheat or white wheat | C10: Approx. 2.0 oz. and 3.5 inch, sliced | D10: 2 | E10: 2.0 oz | F10: 12 2.0 oz. | G10: 12 | H10: 888 | O10: =IF(ISBLANK(L10),H10, (H10*G10)/L10) -> 888 | P10: =O10*N10 -> 0 | S10: 1.83 | T10: 18 | U10: Duva 3104 | V10: English Muffin, Whole Wheat | W10: Homestead
A11: 9 | B11: Panini, wheat, sliced. oat topped | C11: Approx. 38 oz. and 20 slices | D11: 1 | E11: 2.0 oz. | F11: 38 oz. loaf | O11: =IF(ISBLANK(L11),H11, (H11*G11)/L11) -> 0 | P11: =O11*N11 -> 0 | S11: 1.52 | T11: 19 | U11: Duva 1096 | V11: Panini, Multigrain sliced | W11: Fantini
A12: 10 | B12: Roll, bulkie, seedless, wheat or white wheat | C12: Approx. 2.5 oz. and 4", sliced | D12: 2 | E12: 2.5 oz. | F12: 12 2.50 oz. | G12: 6 | H12: 7492 | O12: =IF(ISBLANK(L12),H12, (H12*G12)/L12) -> 7492 | P12: =O12*N12 -> 0 | S12: 1.6 | T12: 8 | U12: Duva 157 | V12: Bulkie Rolls, Whole Wheat, No seeds | W12: Fantini
A13: 11 | B13: Roll, dinner, wheat or white wheat | C13: 1 oz, each, soft inside texture, pull-apart cluster | D13: 1 | E13: 1.0 oz. | F13: 30 1.0 oz. | G13: 30 | H13: 17771 | O13: =IF(ISBLANK(L13),H13, (H13*G13)/L13) -> 17771 | P13: =O13*N13 -> 0 | S13: 2.5 | T13: 12 | U13: Duva 168 | V13: Dinner Rolls, White Whole Wheat | W13: Fantini
A14: 12 | B14: Roll, dinner, honey wheat | C14: 1 oz., individuals | D14: 1,00 | E14: 1.0 oz. | F14: 12 1.oz. | G14: 12 | O14: =IF(ISBLANK(L14),H14, (H14*G14)/L14) -> 0 | P14: =O14*N14 -> 0 | T14: 13 | U14: Duva 167 | V14: Dinner Rolls, Honey Whole Wheat | W14: Fantini
A15: 13 | B15: Roll, French, 4", wheat or white wheat | C15: Sliced, but attached at one side | D15: 1 | E15: 1.5 oz. | F15: 12 1.5 oz. | G15: 12 | O15: =IF(ISBLANK(L15),H15, (H15*G15)/L15) -> 0 | P15: =O15*N15 -> 0 | S15: 0.95 | T15: 9 | U15: Duva 4867 | V15: 4" French Rolls, Whole Wheat | W15: Fantini
A16: 14 | B16: Roll, hamburger, wheat or white wheat | C16: 3.5 inch, 2 oz, sliced | D16: 2 | E16: 2.0 oz. | F16: 12 2.0 oz. | G16: 12 | H16: 28802 | O16: =IF(ISBLANK(L16),H16, (H16*G16)/L16) -> 28802 | P16: =O16*N16 -> 0 | S16: 1.5 | T16: 6 | U16: Duva 155 | V16: Hamburg Rolls, Whole Wheat | W16: Fantini
A17: 15 | B17: Roll, hot dog, wheat or white wheat | C17: New England Style, top sliced | D17: 2 | E17: 2.0 oz. | F17: 12 2.0 oz. | G17: 16 | H17: 13709 | O17: =IF(ISBLANK(L17),H17, (H17*G17)/L17) -> 13709 | P17: =O17*N17 -> 0 | S17: 1.85 | T17: 7 | U17: Duva 3016 | V17: Hot Dog Rolls, Whole Wheat | W17: Gold Medal
A18: 16 | B18: Roll, sub 6", wheat or white wheat | C18: Sliced, but attached at one side | D18: 2 | E18: 2.0 oz. | F18: 12 2.0 oz. | G18: 6 | H18: 5650 | O18: =IF(ISBLANK(L18),H18, (H18*G18)/L18) -> 5650 | P18: =O18*N18 -> 0 | S18: 1.65 | T18: 10 | U18: Duva 1061 | V18: 6" Sub Rolls, Whole Wheat | W18: Fantini
A19: 17 | B19: Roll, sub, 8", wheat or white wheat | C19: Sliced, but attached at one side | D19: 2 | E19: 3.0 oz. | F19: 6 3.0 oz. | G19: 6 | H19: 2484 | O19: =IF(ISBLANK(L19),H19, (H19*G19)/L19) -> 2484 | P19: =O19*N19 -> 0 | S19: 1.45 | T19: 11 | U19: Duva 557 | V19: 8" Sur Roll, Whole Wheat' | W19: Fantini
A20: 18 | B20: Wrap, 10" diameter, wheat | C20: Round | D20: 2 | E20: 3.0 oz. | F20: 12 3.0 oz. | G20: 12 | H20: 1540 | O20: =IF(ISBLANK(L20),H20, (H20*G20)/L20) -> 1540 | P20: =O20*N20 -> 0 | S20: 3.25 | T20: 17 | U20: Duva 2267 | V20: Wrap. 11" Diameter, Whole Wheat | W20: Joseph's
A21: 19 | B21: Wrap, 8" diameter, wheat | C21: Round | D21: 2 | E21: 2.0 oz. | F21: 10 2.0 oz. | G21: 10 | H21: 2795 | O21: =IF(ISBLANK(L21),H21, (H21*G21)/L21) -> 2795 | P21: =O21*N21 -> 0 | T21: 16 | U21: Duva 2467 | V21: Wrap. 8" Diameter, Whole Wheat | W21: Joseph's
N22: Grand Total: | P22: =SUM(P3:P21) -> 0

Sheet Sheet2 (hidden)
A1: X
A2: Exception
